{"text_format":"3","workbook":"xlsx","n_sheets":1,"sheets":["Seznam živil"],"not_rendered":{"images":1,"external_links":1,"defined_names":3},"read":"whole","date_system":"1900"}

{"sheet":"Seznam živil","index":0,"n_rows":31,"n_cols":8,"rows_kept":31,"merged":[[1,1,1,2]]}
[null,"Seznam živil"]
[null,"DATUM"]
[null,"Dokončano?","Element","Kategorija","Količina","Cena","Skupna cena","Blagovna znamka/pripombe"]
[null,null,"Pomaranče","Sadje in zelenjava",null,null,{"$f":"IFERROR(SUM(Seznam_živil[Količina]*Seznam_živil[Cena]), \"\")","v":{"v":0,"d":"0.00 €"}}]
[null,null,"Jabolka","Sadje in zelenjava",null,null,{"$f":"IFERROR(SUM(Seznam_živil[Količina]*Seznam_živil[Cena]), \"\")","v":{"v":0,"d":"0.00 €"}}]
[null,null,"Banane","Sadje in zelenjava",null,null,{"$f":"IFERROR(SUM(Seznam_živil[Količina]*Seznam_živil[Cena]), \"\")","v":{"v":0,"d":"0.00 €"}}]
[null,null,"Solata","Sadje in zelenjava",null,null,{"$f":"IFERROR(SUM(Seznam_živil[Količina]*Seznam_živil[Cena]), \"\")","v":{"v":0,"d":"0.00 €"}}]
[null,null,"Paradižnik","Sadje in zelenjava",null,null,{"$f":"IFERROR(SUM(Seznam_živil[Količina]*Seznam_živil[Cena]), \"\")","v":{"v":0,"d":"0.00 €"}},"  "]
[null,null,"Mleko ","Mlečni izdelki",null,null,{"$f":"IFERROR(SUM(Seznam_živil[Količina]*Seznam_živil[Cena]), \"\")","v":{"v":0,"d":"0.00 €"}}]
[null,null,"Sir","Mlečni izdelki",null,null,{"$f":"IFERROR(SUM(Seznam_živil[Količina]*Seznam_živil[Cena]), \"\")","v":{"v":0,"d":"0.00 €"}}]
[null,null,"Jajca","Mlečni izdelki",null,null,{"$f":"IFERROR(SUM(Seznam_živil[Količina]*Seznam_živil[Cena]), \"\")","v":{"v":0,"d":"0.00 €"}}]
[null,null,"Skuta","Mlečni izdelki",null,null,{"$f":"IFERROR(SUM(Seznam_živil[Količina]*Seznam_živil[Cena]), \"\")","v":{"v":0,"d":"0.00 €"}}]
[null,null,"Govedina","Meso",null,null,{"$f":"IFERROR(SUM(Seznam_živil[Količina]*Seznam_živil[Cena]), \"\")","v":{"v":0,"d":"0.00 €"}}]
[null,null,"Perutnina","Meso",null,null,{"$f":"IFERROR(SUM(Seznam_živil[Količina]*Seznam_živil[Cena]), \"\")","v":{"v":0,"d":"0.00 €"}}]
[null,null,"Slanina","Meso",null,null,{"$f":"IFERROR(SUM(Seznam_živil[Količina]*Seznam_živil[Cena]), \"\")","v":{"v":0,"d":"0.00 €"}}]
[null,null,"Sok","Pijača",null,null,{"$f":"IFERROR(SUM(Seznam_živil[Količina]*Seznam_živil[Cena]), \"\")","v":{"v":0,"d":"0.00 €"}}]
[null,null,"Kava","Pijača",null,null,{"$f":"IFERROR(SUM(Seznam_živil[Količina]*Seznam_živil[Cena]), \"\")","v":{"v":0,"d":"0.00 €"}}]
[null,null,"Čaj","Pijača",null,null,{"$f":"IFERROR(SUM(Seznam_živil[Količina]*Seznam_živil[Cena]), \"\")","v":{"v":0,"d":"0.00 €"}}]
[null,null,"Voda","Pijača",null,null,{"$f":"IFERROR(SUM(Seznam_živil[Količina]*Seznam_živil[Cena]), \"\")","v":{"v":0,"d":"0.00 €"}}]
[null,null,"Rezanci","Testenine",null,null,{"$f":"IFERROR(SUM(Seznam_živil[Količina]*Seznam_živil[Cena]), \"\")","v":{"v":0,"d":"0.00 €"}}]
[null,null,"Riž","Testenine",null,null,{"$f":"IFERROR(SUM(Seznam_živil[Količina]*Seznam_živil[Cena]), \"\")","v":{"v":0,"d":"0.00 €"}}]
[null,null,"Pločevinke","Juha",null,null,{"$f":"IFERROR(SUM(Seznam_živil[Količina]*Seznam_živil[Cena]), \"\")","v":{"v":0,"d":"0.00 €"}}]
[null,null,"Suho sadje","Juha",null,null,{"$f":"IFERROR(SUM(Seznam_živil[Količina]*Seznam_živil[Cena]), \"\")","v":{"v":0,"d":"0.00 €"}}]
[null,null,"Kruh","Pecivo",null,null,{"$f":"IFERROR(SUM(Seznam_živil[Količina]*Seznam_živil[Cena]), \"\")","v":{"v":0,"d":"0.00 €"}}]
[null,null,"Čips","Prigrizki",null,null,{"$f":"IFERROR(SUM(Seznam_živil[Količina]*Seznam_živil[Cena]), \"\")","v":{"v":0,"d":"0.00 €"}}]
[null,null,"Preste","Prigrizki",null,null,{"$f":"IFERROR(SUM(Seznam_živil[Količina]*Seznam_živil[Cena]), \"\")","v":{"v":0,"d":"0.00 €"}}]
[null,null,"Sladoled","Prigrizki",null,null,{"$f":"IFERROR(SUM(Seznam_živil[Količina]*Seznam_živil[Cena]), \"\")","v":{"v":0,"d":"0.00 €"}}]
[null,null,"Piškotki","Prigrizki",null,null,{"$f":"IFERROR(SUM(Seznam_živil[Količina]*Seznam_živil[Cena]), \"\")","v":{"v":0,"d":"0.00 €"}}]
[null,null,"Papirni krožniki","Zaloga",null,null,{"$f":"IFERROR(SUM(Seznam_živil[Količina]*Seznam_živil[Cena]), \"\")","v":{"v":0,"d":"0.00 €"}}]
[null,null,"Prtički","Zaloga",null,null,{"$f":"IFERROR(SUM(Seznam_živil[Količina]*Seznam_živil[Cena]), \"\")","v":{"v":0,"d":"0.00 €"}}]
[{"$nulls":6},{"$f":"SUBTOTAL(109,Seznam_živil[Skupna cena])","v":{"v":0,"d":"0.00 €"}}]